Cogmind - Beta 11 @@@ ROGUE MODE // 2022.04.18 @ 22:57:53 Player: Timm35 Result: Destroyed by S-27 Virus with Autogun Performance ------------- Evolutions (3) 1500 Regions Visited (9) 1800 Robots Destroyed (41) 205 Value Destroyed (1063) 1063 Prototype IDs (25) 500 Alien Tech Used (0) 0 Bonus (326) 326 TOTAL SCORE: 5394 Bonus ------- High Alert Combat Kills 89 Follower Combat Kills 20 Entered Garrisons 200 Aligned with FarCom 300 Friendly Fire -283 Cogmind --------- Core Integrity 0/700 Matter 125/300 Energy 290/290 System Corruption 0% Temperature Cool (0) Movement Core (200) Ox3 Location -7/Garrison Parts ------- > --- POWER (2) -------- Improved Deuterium Engine > --- PROPULSION (3) --- (None) > --- UTILITY (5) ------ Improved Terrain Scan Processor Recoil Stabilizer Recoil Stabilizer > --- WEAPON (3) ------- (None) > --- INVENTORY (5) ---- (None) Peak State ------------ > --- POWER ------------ Light Nuclear Core > --- PROPULSION ------- Aluminum Leg Aluminum Leg Carbon-fiber Leg > --- UTILITY ---------- Sensor Array Improved Propulsion Shielding Reflective Plating Trap Reconfigurator > --- WEAPON ----------- AWS/Gauss Mini Grenade Launcher > --- INVENTORY -------- Ion Engine Sensor Array Particle Gun [Rating: 42] Favorites ----------- Power Ion Engine Engine Ion Engine Power Core Light Nuclear Core Propulsion Aluminum Leg Treads Armored Treads Leg Aluminum Leg Wheel Compact Wheel Hover Unit Gravmag System Utility Sensor Array Device Sensor Array Storage Compact Battery Processor Improved Terrain Scan Processor Protection Improved Propulsion Shielding Weapon Heavy Rocket Launcher Energy Gun Particle Gun Energy Cannon Heavy Ion Cannon Ballistic Gun AWS/Gauss Ballistic Cannon Improved Light Cannon Launcher Heavy Rocket Launcher Build | -11 -10 -10 -10 -9 -8 -7 -7 -7 -7 ------- Run | Scr Mat Min Exi Min Mat Fac Was Fac Gar Slots Evolved 6 | . . . . . 4 2 . . . Power 1 | . . . . . . 1 . . . Propulsion 1 | . . . . . 1 . . . . Utility 3 | . . . . . 2 1 . . . Weapon 1 | . . . . . 1 . . . . Parts Attached 49 | . 3 10 3 . 10 12 4 7 . Power 7 | . . 3 . . 1 1 . 2 . Engine 6 | . . 3 . . . 1 . 2 . Core 1 | . . . . . 1 . . . . Reactor . | . . . . . . . . . . Propulsion 12 | . . 4 . . 2 4 1 1 . Treads 4 | . . . . . . 3 1 . . Leg 5 | . . 2 . . 2 1 . . . Wheel 2 | . . 2 . . . . . . . Hover 1 | . . . . . . . . 1 . Flight . | . . . . . . . . . . Utility 14 | . 2 1 2 . 5 1 . 3 . Device 10 | . 2 1 2 . 1 1 . 3 . Storage 1 | . . . . . 1 . . . . Processor 1 | . . . . . 1 . . . . Hackware . | . . . . . . . . . . Protection 2 | . . . . . 2 . . . . Artifact . | . . . . . . . . . . Weapon 16 | . 1 2 1 . 2 6 3 1 . Energy Gun 8 | . . 2 . . 1 2 2 1 . Energy Cannon 1 | . . . . . . . 1 . . Ballistic Gun 2 | . 1 . 1 . . . . . . Ballistic Cannon 1 | . . . . . . 1 . . . Launcher 4 | . . . . . 1 3 . . . Special Weapon . | . . . . . . . . . . Impact Weapon . | . . . . . . . . . . Slashing Weapon . | . . . . . . . . . . Piercing Weapon . | . . . . . . . . . . Special Melee Weapon . | . . . . . . . . . . Unidentified Prototypes . | . . . . . . . . . . Parts Lost 24 | . . 4 . . 9 . 7 2 2 Power 3 | . . 1 . . 1 . . 1 . Propulsion 6 | . . 2 . . 1 . 2 . 1 Utility 8 | . . . . . 4 . 3 . 1 Weapon 7 | . . 1 . . 3 . 2 1 . Highest Loss Streak 5 | . . 2 . . 4 . 5 1 2 To Critical Strikes . | . . . . . . . . . . Average Slot Usage (%) 72 | . 14 72 97 85 70 77 43 20 42 Engine 8 | . . 9 14 14 5 7 2 . 7 Treads 3 | . . . . . . 17 11 . . Leg 15 | . . 5 28 28 25 5 . . . Wheel 1 | . . 8 . . . . . . . Device 20 | . 12 28 27 28 14 15 6 6 21 Storage 1 | . . . . . 1 7 3 . . Processor 2 | . . . . . 1 7 7 7 7 Energy Gun 8 | . . 9 23 . . 1 . 1 . Ballistic Gun 4 | . 1 10 2 14 7 . . . . Launcher 3 | . . . . . 7 14 11 . . Naked Turns 25 | . 25 . . . . . . . . Heaviest Build 29 | . 3 15 17 17 24 29 29 16 16 Greatest Support 60 | 3 3 26 25 25 37 60 60 9 9 Greatest Overweight (x) 5 | . . 3 . . . . 5 3 3 Average Overweight (x) . | . . . . . . . . . 1 Largest Inventory Capacity 5 | 5 5 5 5 5 5 5 5 5 5 Average Capacity 5 | 5 5 5 5 5 5 5 5 5 5 Most Carried 5 | . 1 3 5 4 4 4 4 2 . Average Carried 1 | . . 1 1 3 2 2 3 . . Final Capacity 5 | 5 5 5 5 5 5 5 5 5 5 Final Carried 4 | . . 1 3 4 3 4 1 . . Class Distribution -------------------- 39% | Scavenger-Mutant 30% | Mutant 18% | Scavenger-Skirmisher 11% | Skirmisher Dominant Class ---------------- Mutant | -10/Materials Scavenger-Mutant | -10/Mines Scavenger-Mutant | -10/Exiles Scavenger-Skirmisher | -9/Mines Scavenger-Skirmisher | -8/Materials Skirmisher | -7/Factory Mutant | -7/Waste Mutant | -7/Factory Mutant | -7/Garrison Resources | -11 -10 -10 -10 -9 -8 -7 -7 -7 -7 ----------- Run | Scr Mat Min Exi Min Mat Fac Was Fac Gar Matter Collected 645 | 84 . 253 . 34 77 39 . 158 . Remotely . | . . . . . . . . . . Salvage Created 1989 | . . 234 . . 1081 39 635 . . Parts 80 | . . 12 . . 62 2 4 . . Haulers Intercepted . | . . . . . . . . . . Recyclers Shooed 1 | . . 1 . . . . . . . Parts Field Recycled . | . . . . . . . . . . Retrieved Matter . | . . . . . . . . . . Parts Self-Destructed . | . . . . . . . . . . Prevented . | . . . . . . . . . . Kills | -11 -10 -10 -10 -9 -8 -7 -7 -7 -7 ------- Run | Scr Mat Min Exi Min Mat Fac Was Fac Gar Combat Hostiles Destroyed 28 | . . 3 . . 22 1 2 . . Guns 25 | . . 3 . . 22 . . . . AOE 3 | . . . . . . 1 2 . . Classes Destroyed 12 | . . 5 . . 6 . 1 . . Worker 6 | . . 2 . . 3 1 . . . Tunneler 1 | . . 1 . . . . . . . Recycler 2 | . . 1 . . 1 . . . . Operator 2 | . . . . . 2 . . . . Watcher 2 | . . . . . 2 . . . . Swarmer 9 | . . . . . 9 . . . . Grunt 8 | . . 2 . . 6 . . . . Duelist 1 | . . . . . 1 . . . . Sentry 5 | . . . . . 4 1 . . . Specialist 2 | . . . . . 2 . . . . Compactor 2 | . . . . . . . 2 . . Assembled 1 | . . 1 . . . . . . . Thug 1 | . . . . . . . 1 . . Best Kill Streak 21 | . . 3 . . 21 2 2 . . Combat Bots Only 14 | . . 1 . . 14 1 2 . . Max Kills in Single Turn 2 | . . 1 . . 2 2 2 . . Gunslinging . | . . . . . . . . . . Exploded 1 | . . . . . . 1 1 . . Melee . | . . . . . . . . . . Uniques/NPCs Destroyed . | . . . . . . . . . . Combat | -11 -10 -10 -10 -9 -8 -7 -7 -7 -7 -------- Run | Scr Mat Min Exi Min Mat Fac Was Fac Gar Damage Taken 2838 | . 61 267 . . 1209 39 451 494 317 Core 993 | . 54 57 . . 174 . 226 343 139 Absorbed by Shields 127 | . . . . . . . . 5 122 Redirected to Shielding 108 | . . . . . 108 . . . . Core Remaining (%) 74 | 100 . . . 55 68 . . . . Volleys Fired 54 | . . 44 . . 2 1 3 4 . Largest 3 | . . 2 . . 1 3 3 1 . Hottest 117 | . . 85 . . 65 117 117 80 . Shots Fired 161 | . . 49 . . 96 3 9 4 . Gun 149 | . . 49 . . 96 . . 4 . Cannon . | . . . . . . . . . . Launcher 12 | . . . . . . 3 9 . . Special . | . . . . . . . . . . Kinetic 131 | . . 37 . . 94 . . . . Thermal 18 | . . 12 . . 2 . . 4 . Explosive 12 | . . . . . . 3 9 . . Electromagnetic . | . . . . . . . . . . Robot Hit Streak 21 | . . 13 . . 21 4 7 1 . Robot Miss Streak 5 | . . 4 . . 5 . 1 5 . Penetration Max 1 | . . . . . 1 . . . . Secondary Targets . | . . . . . . . . . . Autonomous 95 | . . . . . 95 . . . . Shots Hit Robots 109 | . . 32 . . 66 3 7 1 . Core Hits 66 | . . 16 . 1 36 5 7 1 . Critical Kills 1 | . . . . . 1 . . . . Critical Parts Destroyed 1 | . . . . . 1 . . . . Critical Strikes 3 | . . 1 . . 2 . . . . Burn 1 | . . 1 . . . . . . . Destroy 2 | . . . . . 2 . . . . Melee Attacks . | . . . . . . . . . . Impact . | . . . . . . . . . . Slashing . | . . . . . . . . . . Piercing . | . . . . . . . . . . Sneak Attacks . | . . . . . . . . . . Combat Hostiles . | . . . . . . . . . . Follow-up Attacks . | . . . . . . . . . . Damage Inflicted 4101 | . . 355 . 9 2155 101 1469 12 . Guns 2521 | . . 355 . . 2155 . . 11 . Cannons . | . . . . . . . . . . Explosions 1570 | . . . . . . 101 1469 . . Melee . | . . . . . . . . . . Ramming 10 | . . . . 9 . . . 1 . Kinetic 2352 | . . 213 . . 2139 . . . . Thermal 169 | . . 142 . . 16 . . 11 . Explosive 1570 | . . . . . . 101 1469 . . Electromagnetic . | . . . . . . . . . . Impact . | . . . . . . . . . . Slashing . | . . . . . . . . . . Piercing . | . . . . . . . . . . Highest Corruption . | . . . . . . . . . . Average Corruption . | . . . . . . . . . . Corruption Purged . | . . . . . . . . . . Corruption Blocked . | . . . . . . . . . . Overload Shots . | . . . . . . . . . . Overflow Damage . | . . . . . . . . . . Projectiles . | . . . . . . . . . . Explosions . | . . . . . . . . . . Melee . | . . . . . . . . . . Knockbacks . | . . . . . . . . . . Impact . | . . . . . . . . . . Kinetic . | . . . . . . . . . . Secondary . | . . . . . . . . . . Self-Inflicted Damage 151 | . . . . . . . 151 . . Shots 5 | . . . . . . . 5 . . Rammed 2 | . . . . . . . . 2 . Targets Rammed 4 | . . . . 2 . . . 2 . Kicked 2 | . . . . 2 . . . . . Crushed . | . . . . . . . . . . Highest Temperature 374 | . . 374 . . 41 30 31 24 . Average Temperature 112 | . . 182 . . 18 16 15 12 . Received Heat Transfer 411 | . 9 90 . . 288 18 . 6 . Effects 3 | . . 3 . . . . . . . Shutdowns 1 | . . 1 . . . . . . . Energy Bleed 1 | . . 1 . . . . . . . Damage (minor) 1 | . . 1 . . . . . . . Siege Activations . | . . . . . . . . . . Robots Corrupted . | . . . . . . . . . . Combat Hostiles . | . . . . . . . . . . Parts Fried . | . . . . . . . . . . Impact Corruptions . | . . . . . . . . . . Robots Melted . | . . . . . . . . . . Combat Hostiles . | . . . . . . . . . . Parts Melted . | . . . . . . . . . . Heat Transferred 469 | . . 407 . . 37 . . 25 . Parts Sabotaged . | . . . . . . . . . . Parts Stolen . | . . . . . . . . . . Parts Stripped . | . . . . . . . . . . Power Chain Reactions . | . . . . . . . . . . Missiles Intercepted . | . . . . . . . . . . Alert | -11 -10 -10 -10 -9 -8 -7 -7 -7 -7 ------- Run | Scr Mat Min Exi Min Mat Fac Was Fac Gar Peak Influence 701 | . 15 107 . . 701 365 160 258 138 Initial 309 | . . 5 . . . 309 127 63 138 Average 186 | . 13 64 . . 418 323 116 178 132 Maximum Alert Level 3 | . . . . . 3 1 . 1 . Low Security (%) 62 | 100 100 100 . 100 28 . 100 47 100 Level 1 28 | . . . . . 20 100 . 52 . Level 2 9 | . . . . . 49 . . . . Level 3 . | . . . . . 1 . . . . Level 4 . | . . . . . . . . . . Level 5 . | . . . . . . . . . . High Security . | . . . . . . . . . . Max Security . | . . . . . . . . . . Squads Dispatched 8 | . 3 . . . 4 . . 1 . Investigation 1 | . 1 . . . . . . . . Extermination . | . . . . . . . . . . Reinforcement 5 | . 2 . . . 2 . . 1 . Assault . | . . . . . . . . . . Garrison 2 | . . . . . 2 . . . . Intercept . | . . . . . . . . . . Searches Triggered . | . . . . . . . . . . Construction Impeded . | . . . . . . . . . . Haulers Reinforced . | . . . . . . . . . . Active Scanning Responses . | . . . . . . . . . . Cargo Convoy Interrupts . | . . . . . . . . . . Stealth | -11 -10 -10 -10 -9 -8 -7 -7 -7 -7 --------- Run | Scr Mat Min Exi Min Mat Fac Was Fac Gar Distress Signals 5 | . . . . . 4 . . 1 . Communications Jammed . | . . . . . . . . . . Distress Signals . | . . . . . . . . . . Times Spotted 68 | . 4 7 . . 36 1 6 9 5 Peak Tracking Total 8 | . 3 2 . . 8 1 4 4 6 Tactical Retreats 8 | . . 2 . . 3 . . 3 . Traps | -11 -10 -10 -10 -9 -8 -7 -7 -7 -7 ------- Run | Scr Mat Min Exi Min Mat Fac Was Fac Gar Traps Triggered 6 | . 3 . . . . 1 . . 2 Indirectly . | . . . . . . . . . . Trap Hack Attempts . | . . . . . . . . . . Triggered . | . . . . . . . . . . Disarmed . | . . . . . . . . . . Reprogrammed . | . . . . . . . . . . Reused . | . . . . . . . . . . Traps Extracted . | . . . . . . . . . . Installed . | . . . . . . . . . . Triggered 1 | . . . . . . . . 1 . Machines | -11 -10 -10 -10 -9 -8 -7 -7 -7 -7 ---------- Run | Scr Mat Min Exi Min Mat Fac Was Fac Gar Machines Disabled 2 | . . . . . 2 . . . . Max in Single Turn 1 | . . . . . 1 . . . . Machines Sabotaged . | . . . . . . . . . . Garrisons Compromised . | . . . . . . . . . . Overloaded Fab Kills . | . . . . . . . . . . Hacking | -11 -10 -10 -10 -9 -8 -7 -7 -7 -7 --------- Run | Scr Mat Min Exi Min Mat Fac Was Fac Gar Machines Accessed 13 | . . . 5 . 2 2 . 4 . Terminals 4 | . . . . . 2 2 . . . Fabricators 3 | . . . . . . . . 3 . Repair Stations . | . . . . . . . . . . Recycling Units . | . . . . . . . . . . Scanalyzers . | . . . . . . . . . . Garrison Access 1 | . . . . . . . . 1 . Total Hacks 67 | . . . 50 . 7 3 . 7 . Successful 62 | . . . 50 . 6 2 . 4 . Failed 5 | . . . . . 1 1 . 3 . Catastrophic . | . . . . . . . . . . Database Lockouts . | . . . . . . . . . . Manual 5 | . . . 3 . 1 1 . . . Terminals 10 | . . . . . 7 3 . . . Fabricators 5 | . . . . . . . . 5 . Repair Stations . | . . . . . . . . . . Recycling Units . | . . . . . . . . . . Scanalyzers . | . . . . . . . . . . Garrison Access 2 | . . . . . . . . 2 . Terminal Hacks 58 | . . . 50 . 6 2 . . . Record 54 | . . . 49 . 5 . . . . Prototype ID Bank 1 | . . . . . . 1 . . . Open DSF 1 | . . . . . . 1 . . . Zone Layout 1 | . . . . . 1 . . . . EX-Prototype ID Bank 1 | . . . 1 . . . . . . Fabricator Hacks 2 | . . . . . . . . 2 . Network Status 1 | . . . . . . . . 1 . Build 1 | . . . . . . . . 1 . Repair Station Hacks . | . . . . . . . . . . Recycling Unit Hacks . | . . . . . . . . . . Scanalyzer . | . . . . . . . . . . Garrison Access Hacks 2 | . . . . . . . . 2 . Unlock Access 1 | . . . . . . . . 1 . Coupler Status 1 | . . . . . . . . 1 . Unauthorized Hacks . | . . . . . . . . . . Terminals . | . . . . . . . . . . Fabricators . | . . . . . . . . . . Repair Stations . | . . . . . . . . . . Recycling Units . | . . . . . . . . . . Scanalyzers . | . . . . . . . . . . Garrison Access . | . . . . . . . . . . Data Cores Recovered . | . . . . . . . . . . Used . | . . . . . . . . . . Hacking Detections 5 | . . . . . 2 1 . 2 . Full Trace Events 1 | . . . . . 1 . . . . Feedback Events . | . . . . . . . . . . Feedback Blocked . | . . . . . . . . . . Robot Schematics Acquired . | . . . . . . . . . . Robots Built 3 | . . . . . . . . 3 . Authchips . | . . . . . . . . . . Time 67 | . . . . . . . . 67 . Total Robot Build Rating 12 | . . . . . . . . 12 . Part Schematics Acquired . | . . . . . . . . . . Parts Built . | . . . . . . . . . . Authchips . | . . . . . . . . . . Time . | . . . . . . . . . . Total Part Build Rating . | . . . . . . . . . . Parts Repaired . | . . . . . . . . . . Time . | . . . . . . . . . . Parts Recycled . | . . . . . . . . . . Recycled Matter . | . . . . . . . . . . Retrieved Matter . | . . . . . . . . . . Retrieved Components . | . . . . . . . . . . Parts Scanalyzed . | . . . . . . . . . . Part Schematics Acquired . | . . . . . . . . . . Parts Damaged . | . . . . . . . . . . Bothacking | -11 -10 -10 -10 -9 -8 -7 -7 -7 -7 ------------ Run | Scr Mat Min Exi Min Mat Fac Was Fac Gar Used RIF Installer . | . . . . . . . . . . Robots Hacked . | . . . . . . . . . . Non-combat . | . . . . . . . . . . Combat . | . . . . . . . . . . Robot Hacks Applied . | . . . . . . . . . . Relay Couplers Released . | . . . . . . . . . . Fabnet Peak Effective % . | . . . . . . . . . . Robots Rewired . | . . . . . . . . . . Allies Hacked . | . . . . . . . . . . Hacks Repelled . | . . . . . . . . . . Allies | -11 -10 -10 -10 -9 -8 -7 -7 -7 -7 -------- Run | Scr Mat Min Exi Min Mat Fac Was Fac Gar Total Allies 6 | . . 2 . . . . 1 3 . Largest Group 3 | . . 2 1 . . . 1 3 . Highest-Rated Group 60 | . . 45 14 . . . 31 60 . Highest-Rated Ally 31 | . . 31 14 . . . 31 20 . Total Orders . | . . . . . . . . . . Ally Attacks 33 | . . 12 . . . . 8 13 . Total Damage 645 | . . 216 . . . . 129 300 . Kills 7 | . . 3 . . . . . 4 . Allies Corrupted . | . . . . . . . . . . Allies Melted 1 | . . . . . . . . 1 . Intel | -11 -10 -10 -10 -9 -8 -7 -7 -7 -7 ------- Run | Scr Mat Min Exi Min Mat Fac Was Fac Gar Robot Analysis Total . | . . . . . . . . . . Derelict Logs Recovered 2 | . . 1 . 1 . . . . . Drone Launches . | . . . . . . . . . . Drone Recoveries . | . . . . . . . . . . Exploration | -11 -10 -10 -10 -9 -8 -7 -7 -7 -7 ------------- Run | Scr Mat Min Exi Min Mat Fac Was Fac Gar Turns Passed 2823 | 14 108 441 828 229 375 358 193 242 35 Spaces Moved 2326 | 19 203 332 684 189 259 215 162 245 18 Core 586 | 19 203 132 . . . . 95 136 1 Treads 220 | . . . . . . 153 67 . . Legs 1232 | . . 38 684 189 259 62 . . . Wheels 162 | . . 162 . . . . . . . Hover 126 | . . . . . . . . 109 17 Flight . | . . . . . . . . . . Fastest Speed 50 | 50 50 50 120 120 105 110 50 50 120 Average Speed 104 | 50 50 81 120 120 117 152 107 71 124 Slowest Speed 300 | 50 50 200 120 120 120 170 300 200 200 Overloaded Moves . | . . . . . . . . . . Propulsion Burnouts . | . . . . . . . . . . Robots Hopped . | . . . . . . . . . . Cave-ins Triggered . | . . . . . . . . . . Time Travels 1 | . . . 1 . . . . . . Exploration Rate (%) 36 | 3 27 64 91 43 28 8 81 7 8 Regions Visited 9 Branch Regions 3 Pre-discovered Areas 1 | . . . 1 . . . . . . Known Exits Taken 2 | . . . . . 1 . . 1 . Unknown Exits Taken 5 | 1 1 1 1 1 . . . . . Scrap Searched 1 | . . . . 1 . . . . . Spaces Dug . | . . . . . . . . . . Terrain Destroyed 120 | . . . . . 54 1 65 . . Melee . | . . . . . . . . . . Projectile 54 | . . . . . 54 . . . . AOE 66 | . . . . . . 1 65 . . Terrain Rammed . | . . . . . . . . . . Walls Destroyed . | . . . . . . . . . . Machines Disabled . | . . . . . . . . . . Actions | -11 -10 -10 -10 -9 -8 -7 -7 -7 -7 --------- Run | Scr Mat Min Exi Min Mat Fac Was Fac Gar Total 2653 | 22 208 461 692 191 327 243 173 306 30 Wait 165 | 4 . 65 . . 50 . 4 42 . Move 2319 | 18 202 331 683 188 258 215 161 245 18 Hop . | . . . . . . . . . . Pick Up 42 | . 3 10 3 1 7 11 1 6 . Fast Attach . | . . . . . . . . . . Attach 39 | . 3 9 2 . 8 6 4 7 . Detach 2 | . . . 2 . . . . . . Swap 10 | . . 1 1 . 2 6 . . . Drop 6 | . . 1 1 . . 4 . . . Fire 54 | . . 44 . . 2 1 3 4 . Melee . | . . . . . . . . . . Ram 2 | . . . . . . . . 2 . Kick 2 | . . . . 2 . . . . . Crush . | . . . . . . . . . . Escape Stasis 12 | . . . . . . . . . 12 Rewire . | . . . . . . . . . . Trap . | . . . . . . . . . . Miscellaneous . | . . . . . . . . . . Route ------- -11/Scrapyard -10/Materials -10/Mines (discovered 3 exits: [*Mat x2] / *Exi) -10/Exiles (discovered 2 exits: [*Min x2]) -9/Mines (discovered 2 exits: *Mat x2) -8/Materials (discovered 3 exits: *Fac x2 / [*Sto]) -7/Factory -7/Waste -7/Factory -7/Garrison History --------- Turn | Location | Event 7 | -11/Scrapyard | Discovered new exit (range 15) 15 | -11/Scrapyard | Entered Materials 104 | -10/Materials | Discovered new exit (range 14) 123 | -10/Materials | Entered Mines 124 | -10/Mines | Assembled infested the area 168 | -10/Mines | Discovered new exit (range 11) 171 | -10/Mines | Learned location of 1 exit from Materials 200 | -10/Mines | Discovered new exit (range 9) 510 | -10/Mines | Deemed a non-threat by the Exiles lab entrance 510 | -10/Mines | Discovered new exit (range 5) 564 | -10/Mines | Entered Exiles 564 | -10/Exiles | Accompanied by 1 ally 584 | -10/Exiles | Discovered new exit (range 15) 599 | -10/Exiles | Met 8R-AWN 620 | -10/Exiles | Met EX-HEX 666 | -10/Exiles | Met EX-DEC 675 | -10/Exiles | Learned location of Zion (-7) 750 | -10/Exiles | Visited The Gauntlet 770 | -10/Exiles | Build established: Scavenger-Mutant 956 | -10/Exiles | Discovered new exit (range 14) 1036 | -10/Exiles | Met EX-BIN 1058 | -10/Exiles | Aligned with FarCom system 1059 | -10/Exiles | Given EX-Vault access code 1252 | -10/Exiles | Opened EX-Vault 1263 | -10/Exiles | Found Chronowheel 1266 | -10/Exiles | Activated Chronowheel 1266 | -10/Exiles | Spacetime reconverged on an earlier point 1267 | -10/Exiles | Found AWS/Gauss 1276 | -10/Exiles | Found Trap Reconfigurator 1301 | -10/Exiles | Warned to stay clear of 0b10 Research branches 1392 | -10/Exiles | Stole two prototypes: Trap Reconfigurator, AWS/Gauss 1392 | -10/Exiles | Entered Mines 1397 | -9/Mines | Discovered new exit (range 16) 1589 | -9/Mines | Learned Materials terminal intel 1612 | -9/Mines | Discovered new exit (range 6) 1621 | -9/Mines | Entered Materials 1621 | -8/Materials | Evolved 4 slots: Propulsion x1, Utility x2, Weapon x1 1622 | -8/Materials | Identified exit to Factory 1623 | -8/Materials | Loaded intel: 12 terminal locations 1682 | -8/Materials | Build established: Scavenger-Skirmisher 1703 | -8/Materials | Discovered new exit (range 15) 1810 | -8/Materials | Garrison activated, responded to threat 1877 | -8/Materials | Destroyed 14 combat bots 1945 | -8/Materials | Lost 4 parts (2u2w) 1994 | -8/Materials | Lost 4 parts (1p1n1u1w) 1994 | -8/Materials | Discovered exit to Factory (range 3) 1996 | -8/Materials | Entered Factory 1996 | -7/Factory | Evolved 2 slots: Power x1, Utility x1 1998 | -7/Factory | FarCom data flow suspended 2354 | -7/Factory | Sucked down chute 2354 | -7/Factory | Entered Waste 2355 | -7/Waste | Met a frightened Derelict 2408 | -7/Waste | Build established: Skirmisher 2416 | -7/Waste | Spotted C-40 Crusher 2416 | -7/Waste | Spotted C-40 Crusher 2420 | -7/Waste | Destroyed C-40 Crusher 2420 | -7/Waste | Spotted C-40 Crusher 2426 | -7/Waste | Destroyed C-40 Crusher 2433 | -7/Waste | Spotted C-40 Crusher 2433 | -7/Waste | Crushed by Compactor (1 part destroyed, 2 dropped) 2439 | -7/Waste | Crushed by Compactor (1 part destroyed, 1 dropped) 2442 | -7/Waste | Crushed by Compactor (1 part destroyed, 1 dropped) 2451 | -7/Waste | Crushed by Compactor (1 part destroyed, 1 dropped) 2454 | -7/Waste | Spotted C-40 Crusher 2482 | -7/Waste | Lost 5 parts (1n3u1w) 2505 | -7/Waste | Crushed by Compactor (1 part destroyed) 2507 | -7/Waste | Spotted C-40 Crusher 2508 | -7/Waste | Crushed by Compactor (1 part destroyed, 2 dropped) 2538 | -7/Waste | Discovered new exit (range 11) 2547 | -7/Waste | Entered Factory 2599 | -7/Factory | Core integrity fell below 50% 2638 | -7/Factory | Fabricated B-48 Gladiator? 2762 | -7/Factory | Build established: Mutant 2779 | -7/Factory | Core integrity fell below 20% 2787 | -7/Factory | Identified exit to Garrison 2789 | -7/Factory | Entered Garrison 2802 | -7/Garrison | Triggered checkpoint 2824 | -7/Garrison | Destroyed by S-27 Virus with Autogun Last Messages --------------- 02809_ Field strength at 93. 02810_ Field strength at 86. 02811_ Field strength at 79. 02812_ Field strength at 72. 02812_ Imp. Shield Generator destroyed. 02813_ Field strength at 65. 02814_ Field strength at 53. 02815_ Field strength at 39. 02816_ Field strength at 28. 02817_ Field strength at 12. 02818_ Gravmag System destroyed. 02818_ Stasis field depleted. 02818_ Triggered Stasis Trap. 02818_ A bubble of rippling energy engulfs the area. 02818_ Field strength at 94. 02820_ Field strength at 84. 02821_ Field strength at 70. 02822_ Field strength at 60. 02823_ Field strength at 46. [Achievement: 5k Club] Map ----- +----------------------------------------------------+ | ?????????????????????????????????????????????????? | | ?????????????????????????????????????????????????? | | ?????????????????????????????????????????????????? | | ?????????????????????????????????????????????????? | | ?????????????????????????????????????????????????? | | ?????????????????????#######?????????????????????? | | ?????????????????????# #?????????????????????? | | ?????????????????????# #?????????????????????? | | ?????????????????????# #?????????????????????? | | ?????????????????????### #?????????????????????? | | ???????????????????????# #?????????????????????? | | ???????????????????????# #?????????????????????? | | ???????????????????????# #?????????????????????? | | ???????????????????????# #?????????????????????? | | ???????????????????????# #?????????????????????? | | ???????????????????????# #?????????????????????? | | ???????????????????????# #?????????????????????? | | ???????????????????????# ###???????????????????? | | ???????????????????????# #???????????????????? | | ???????????????????????# #???????????????????? | | ???????????????????????# g #???????????????????? | | ???????????????????????# b ###???????????????????? | | ???????????????????????# ss#?????????????????????? | | ???????????????????????# s#?????????????????????? | | ???????????????????????# ^ #?????????????????????? | | ???????????????????????#^@^#?????????????????????? | | ???????????????????????# #?????????????????????? | | ???????????????????????# #?????????????????????? | | ???????????????????????# #?????????????????????? | | ??????????????????????? #?????????????????????? | | ?????????????????????? #?????????????????????? | | ??????????????????????## #?????????????????????? | | ???????????????????????# #?????????????????????? | | ???????????????????????# #?????????????????????? | | ???????????????????????# #?????????????????????? | | ???????????????????????# #?????????????????????? | | ???????????????????????# #?????????????????????? | | ???????????????????????# #?????????????????????? | | ???????????????????????# ??????????????????????? | | ???????????????????????? ??????????????????????? | | ???????????????????????? ??????????????????????? | | ?????????????????????????????????????????????????? | | ?????????????????????????????????????????????????? | | ?????????????????????????????????????????????????? | | ?????????????????????????????????????????????????? | | ?????????????????????????????????????????????????? | | ?????????????????????????????????????????????????? | | ?????????????????????????????????????????????????? | | ?????????????????????????????????????????????????? | | ?????????????????????????????????????????????????? | +----------------------------------------------------+ Best States ------------- Heat Dissipation 34 Energy Generation 16 Energy Capacity 450 Matter Stores 300 Matter Capacity 300 Sight Range 16 Robot Scan Range 14 Terrain Scan Range 16 Terrain Scan Density 110 Armor Coverage 150 Resistance: TH 10 Propulsion Shielding 66 Evasion (%) 55 Recoil Reduction 8 Item Schematics ----------------- None Robot Schematics ------------------ None Fabricated ------------ B-48 Gladiator | x3 | -7/Factory | Preloaded Alien Tech Used ----------------- None Achievements -------------- 5k Club I Survived The Infestation Made in Tau Ceti IV My Command Is Your Wish Please Form A Line Troublemaker Challenges ------------ None Game ------ Seed CoolantKineticMatter Manual? 0 Play Time 00:49:32 Cumulative 7.6 hours Start 2022.04.18 @ 21:11:43 End 2022.04.18 @ 22:57:53 Sessions 1 Manual Loads 0 Difficulty Rogue Special Mode None Game No. 17 Rogue 17 Adventurer 0 Explorer 0 Win Type - Total 0 Types 0/0/0/0/0/0/0/0/0 Lore% 15 Gallery% 12 Achievement% 12 Wizard Run 0 Options --------- ASCII 0 Keyboard 0 Movement Mouse Keybinds 0 Fullscreen 1 Font 18/X11Bold Map View 76x50 Tactical HUD 1 Map Filters NONE Filters NONE Steam 1 RUN: 88e218a2-ac14-4732-b915-0b7015651e67